bitfinex-derivatives/quotes_SOLF0:USTF0_20240918
["timestamp","ask_amount","ask_price","bid_price","bid_amount"]
[1726636682535,9.39,130.97,130.94,13.2082]
[1726636683534,13.2074,130.97,130.94,13.2082]
[1726636684547,13.2074,130.97,130.94,3.8182]
[1726636684937,3.8173,130.98,130.95,3.818]
[1726636687247,13.2073,130.98,130.95,3.818]
[1726636688439,13.2073,130.98,130.94,3.8182]
[1726636689444,3.8174,130.97,130.94,3.8182]
[1726636691251,9.39,130.96,130.93,3.8184]
[1726636692251,9.39,130.96,130.94,3.8183]
[1726636692747,9.39,130.96,130.92,9.39]
[1726636693145,9.39,130.96,130.93,3.8184]
[1726636694847,3.8172,130.98,130.93,9.39]
[1726636695051,13.2072,130.98,130.93,9.39]
[1726636695848,13.2072,130.98,130.95,3.818]
[1726636696050,13.2072,130.98,130.93,9.39]
[1726636696454,13.2072,130.98,130.94,3.8181]
[1726636703462,13.2075,130.97,130.94,3.8181]
[1726636703959,13.2075,130.97,130.93,3.8184]
[1726636704255,9.39,130.94,130.85,12.16591941]
[1726636704453,9.39,130.94,130.73,15.2978]
[1726636704454,9.39,130.88,130.83,3.76051008]
[1726636704654,3.84911848,130.92,130.83,9.39]
[1726636704855,9.39,130.86,130.82,3.85790294]
[1726636705161,9.39,130.86,130.82,9.39]
[1726636705665,9.39,130.88,130.83,9.39]
[1726636705959,13.2101,130.88,130.84,3.8212]
[1726636706964,9.39,130.88,130.83,9.39]
[1726636707258,9.39,130.88,130.84,9.39]
[1726636707563,9.39,130.88,130.85,3.8209]
[1726636711861,13.2101,130.88,130.85,3.8209]
[1726636715465,23.58381176,130.93,130.84,9.39]
[1726636715672,9.39,130.87,130.84,9.39]
[1726636716272,9.39,130.87,130.84,3.8211]
[1726636718868,3.8199,130.89,130.85,3.8208]
[1726636719074,9.39,130.88,130.85,3.8208]
[1726636720770,9.39,130.87,130.85,3.8208]
[1726636721374,9.39,130.87,130.86,3.8206]
[1726636721576,3.8195,130.9,130.86,3.8206]
[1726636721879,9.39,130.89,130.86,3.8206]
[1726636722475,13.2098,130.89,130.86,3.8206]
[1726636726873,3.8198,130.89,130.86,3.8206]
[1726636727084,9.39,130.88,130.86,3.8206]
[1726636737288,9.39,130.91,130.86,9.39]
[1726636738685,3.8195,130.9,130.85,9.39]
[1726636738886,9.39,130.89,130.85,9.39]
[1726636739894,9.39,130.89,130.86,3.8204]
[1726636740285,9.39,130.89,130.85,9.39]
[1726636740791,9.39,130.89,130.86,3.8204]
[1726636744393,13.2098,130.89,130.86,3.8204]
[1726636745694,9.39,130.89,130.87,3.8202]
[1726636746594,4.4165,130.93,130.87,3.8202]
[1726636746799,13.2093,130.91,130.88,3.82]
[1726636747195,9.39,130.91,130.89,3.8197]
[1726636747395,9.39,130.91,130.87,9.39]
[1726636748892,13.2092,130.91,130.88,3.82]
[1726636751008,13.2092,130.91,130.87,13.2102]
[1726636751209,13.2092,130.91,130.87,9.39]
[1726636752800,3.819,130.92,130.88,9.39]
[1726636753810,3.819,130.92,130.89,3.8197]
[1726636757012,17.6252,130.93,130.9,3.8194]
[1726636757205,16.0972,130.93,130.9,3.8194]
[1726636757412,9.39,130.91,130.8,5.19472344]
[1726636757611,3.8197,130.9,130.86,13.2104]
[1726636757813,9.39,130.91,130.86,13.2104]
[1726636758311,2.8885,130.93,130.87,3.8203]
[1726636758312,3.8196,130.9,130.87,3.8203]
[1726636758508,13.2096,130.9,130.87,3.8203]
[1726636759413,3.8198,130.89,130.86,13.2106]
[1726636762014,13.2096,130.9,130.86,13.2106]
[1726636766120,13.2096,130.9,130.87,3.8203]
[1726636787633,9.39,130.9,130.87,3.8203]
[1726636787836,13.2093,130.91,130.87,13.2103]
[1726636788534,5.2889,130.92,130.88,13.2098]
[1726636788735,1.4699,130.92,130.89,9.39]
[1726636788930,2.8885,130.93,130.9,9.39]
[1726636789338,2.8885,130.93,130.9,13.2092]
[1726636789639,2.8885,130.93,130.9,9.39]
[1726636790734,2.8885,130.93,130.88,3.9012379]
[1726636790935,12.2785,130.93,130.88,9.39]
[1726636791140,9.39,130.91,130.8,3.7981527]
[1726636791337,9.39,130.91,130.86,9.39]
[1726636791841,13.2094,130.91,130.87,3.8202]
[1726636795940,3.8194,130.91,130.87,13.2102]
[1726636796143,2.8885,130.93,130.87,9.39]
[1726636796347,2.8885,130.93,130.88,9.39]
[1726636796546,12.2785,130.93,130.89,3.8196]
[1726636796951,16.0973,130.93,130.89,3.8196]
[1726636797550,3.8189,130.92,130.89,3.8196]
[1726636797854,9.39,130.92,130.88,3.8199]
[1726636798148,13.2089,130.92,130.88,3.8199]
[1726636801054,2.8885,130.93,130.9,9.39]
[1726636801554,16.0971,130.93,130.89,3.8196]
[1726636803846,16.0971,130.93,130.9,3.8194]
[1726636804847,12.2785,130.93,130.91,3.8192]
[1726636807849,12.2785,130.93,130.9,3.8193]
[1726636808456,16.0971,130.93,130.9,3.8193]
[1726636811860,12.2785,130.93,130.9,3.8193]
[1726636812062,2.8885,130.93,130.9,3.8193]
[1726636812751,6.7071,130.93,130.9,3.8193]
[1726636814864,3.8189,130.92,130.89,3.8196]
[1726636815066,9.39,130.91,130.89,3.8196]
[1726636815262,9.39,130.91,130.86,3.89329757]
[1726636815458,9.39,130.91,130.87,14.58405064]
[1726636815759,9.39,130.91,130.88,9.01385064]
[1726636815965,9.39,130.91,130.88,3.8198]
[1726636816360,9.39,130.91,130.89,3.8197]
[1726636816662,3.819,130.92,130.89,3.8197]
[1726636817962,2.8885,130.93,130.84,13.29858189]
[1726636818159,2.8885,130.93,130.86,9.39]
[1726636818359,9.39,130.91,130.86,9.39]
[1726636818666,3.8193,130.91,130.87,3.8202]
[1726636818867,13.2093,130.91,130.87,3.8202]
[1726636823066,13.2096,130.9,130.86,3.8205]
[1726636823468,9.39,130.9,130.86,3.8205]
[1726636824867,3.8198,130.89,130.86,3.8205]
[1726636825773,13.2098,130.89,130.86,3.8205]
[1726636835973,9.39,130.89,130.86,3.8205]
[1726636847991,3.8196,130.9,130.86,3.8205]
[1726636848191,9.39,130.9,130.85,9.39]
[1726636848890,9.39,130.9,130.87,3.8201]
[1726636853696,9.39,130.89,130.87,3.8201]
[1726636857491,13.2095,130.9,130.87,3.8201]
[1726636860000,9.39,130.9,130.87,3.8201]
[1726636861004,9.39,130.9,130.88,3.8199]
[1726636861309,9.39,130.91,130.86,9.39]
[1726636861802,9.39,130.91,130.88,3.8199]
[1726636864410,9.39,130.91,130.89,3.8197]
[1726636868123,3.819,130.92,130.9,3.8194]
[1726636871723,13.2092,130.91,130.83,3.87716884]
[1726636871921,2.8885,130.93,130.86,9.39]
[1726636872116,9.39,130.9,130.87,9.39]
[1726636872520,9.39,130.9,130.89,3.8198]
[1726636872923,3.819,130.92,130.89,3.8198]
[1726636873125,13.209,130.92,130.89,3.8198]
[1726636881128,9.39,130.91,130.87,9.39]
[1726636882734,13.2093,130.91,130.88,3.8199]
[1726636884335,9.39,130.91,130.88,3.8199]
[1726636886135,13.209,130.92,130.88,3.8199]
[1726636887437,13.209,130.92,130.89,3.8197]
[1726636892333,16.0972,130.93,130.9,3.8194]
[1726636895135,3.8189,130.92,130.9,3.8194]
[1726636896834,16.0972,130.93,130.9,3.8194]
[1726636897437,1.4806,130.93,130.91,13.2091]
[1726636897639,130.28319111,130.96,130.92,9.39]
[1726636898145,1.5253,130.97,130.94,9.39]
[1726636898644,1.5253,130.97,130.95,3.818]
[1726636899242,1.5253,130.97,130.94,13.2082]
[1726636899438,1.5253,130.97,130.94,9.39]
[1726636899748,5.3428,130.97,130.94,13.2081]
[1726636899941,1.5253,130.97,130.93,9.39]
[1726636900347,3.8179,130.96,130.93,9.39]
[1726636901740,3.8179,130.96,130.93,13.2086]
[1726636907055,9.39,130.95,130.88,2.9158]
[1726636907241,9.39,130.95,130.91,9.39]
[1726636907541,9.39,130.95,130.91,13.2089]
[1726636908145,13.2082,130.95,130.91,13.2089]
[1726636910155,13.2082,130.95,130.9,9.39]
[1726636910156,9.39,130.95,130.9,9.39]
[1726636910846,3.8185,130.94,130.9,13.2095]
[1726636911046,9.39,130.94,130.9,13.2095]
[1726636911242,9.39,130.92,130.88,3.8199]
[1726636911850,10.8611,130.92,130.88,3.8199]
[1726636912452,14.6802,130.92,130.88,13.2099]
[1726636912752,5.2902,130.92,130.88,13.2099]
[1726636913051,1.4711,130.92,130.89,13.2098]
[1726636913252,1.4711,130.92,130.9,9.39]
[1726636914042,1.4711,130.92,130.9,13.2094]
[1726636926870,1.4711,130.92,130.86,3.77445442]
[1726636926871,10.8611,130.92,130.89,3.8195]
[1726636927869,14.68,130.92,130.89,3.8195]
[1726636930483,10.8611,130.92,130.89,3.8195]
[1726636931276,1.4711,130.92,130.89,13.2095]
[1726636931672,1.4711,130.92,130.89,3.8195]
[1726636932075,1.4711,130.92,130.89,13.2095]
[1726636932578,1.4711,130.92,130.9,3.8194]
[1726636935086,1.4711,130.92,130.89,13.2095]
[1726636937784,1.4711,130.92,130.9,3.8194]
[1726636944986,1.4711,130.92,130.86,3.77445442]
[1726636945185,1.4711,130.92,130.88,9.39]
[1726636945589,1.4711,130.92,130.9,3.8195]
[1726636947590,1.4711,130.92,130.91,3.8192]
[1726636947992,1.4711,130.92,130.9,3.8194]
[1726636951497,9.39,130.94,130.91,3.8192]
[1726636951789,2.7916,130.96,130.9,9.39]
[1726636951985,2.7916,130.96,130.94,9.39]
[1726636952185,15.28,131.0,130.95,9.39]
[1726636952391,24.67,131.0,130.95,9.39]
[1726636952786,15.28,131.0,130.96,9.39]
[1726636953393,15.28,131.0,130.97,3.8173]
[1726636953594,24.67,131.0,130.96,9.39]
[1726636953896,26.0514,131.0,130.96,9.39]
[1726636954693,29.8681,131.0,130.96,13.2076]
[1726636955997,16.6614,131.0,130.97,3.8173]
[1726636957493,20.478,131.0,130.97,3.8173]
[1726636959894,5.198,131.0,130.97,3.8173]
[1726636960994,1.3814,131.0,130.98,3.8171]
[1726636961396,1.3814,131.0,130.97,9.39]
[1726636961695,1.3814,131.0,130.97,13.2073]
[1726636962202,5.198,131.0,130.97,13.2073]
[1726636969406,5.198,131.0,130.97,3.8173]
[1726636969907,13.2069,130.99,130.96,3.8176]
[1726636971407,3.8172,130.98,130.95,13.2079]
[1726636971819,2.8873,131.0,130.95,13.2079]
[1726636972008,3.8169,130.99,130.95,13.2079]
[1726636974219,3.8169,130.99,130.96,9.39]
[1726636982413,2.8873,131.0,130.97,9.39]
[1726636982619,1.3814,131.0,130.98,9.39]
[1726636983219,1.3814,131.0,130.98,13.2069]
[1726636983421,1.4041,131.04,130.99,9.39]
[1726636983623,12.2234,131.05,131.01,9.39]
[1726636983919,3.8156,131.04,131.01,9.39]
[1726636986419,3.8157,131.03,131.01,9.39]
[1726636988118,12.2234,131.05,130.92,2.8742]
[1726636988119,9.39,131.02,130.92,2.8742]
[1726636988423,9.39,131.02,130.97,9.39]
[1726636989725,13.2061,131.02,130.98,3.8171]
[1726636990319,3.8163,131.01,130.97,13.2073]
[1726636992227,3.8163,131.01,130.99,9.39]
[1726636992625,3.8161,131.02,130.99,9.39]
[1726636996034,3.8161,131.02,130.99,13.2068]
[1726636997136,3.8161,131.02,130.99,9.39]
[1726636999933,9.39,131.0,130.93,304.42816]
[1726637000236,9.39,131.0,130.95,9.39]
[1726637000639,9.39,131.0,130.95,13.2078]
[1726637000640,3.8171,130.99,130.95,13.2078]
[1726637000831,3.8171,130.99,130.96,9.39]
[1726637008037,5.2275,131.0,130.97,9.39]
[1726637014742,3.8165,131.01,130.98,9.39]
[1726637014945,9.39,131.02,130.98,9.39]
[1726637015140,13.2062,131.02,130.98,13.207]
[1726637015546,9.39,131.02,130.98,13.207]
[1726637016142,3.8163,131.01,130.98,13.207]
[1726637016340,3.8163,131.01,130.98,3.817]
[1726637016547,13.2063,131.01,130.98,3.817]
[1726637017151,3.8163,131.01,130.98,3.817]
[1726637017450,13.2063,131.01,130.98,3.817]
[1726637023247,13.2063,131.01,130.98,13.207]
[1726637025458,13.2063,131.01,130.98,3.817]
[1726637030365,1.4985,131.04,130.99,13.2068]
[1726637030366,3.8161,131.02,130.99,13.2068]
[1726637030563,3.8161,131.02,130.99,9.39]
[1726637031563,13.2058,131.03,131.0,3.8165]
[1726637032265,3.816,131.02,131.0,3.8165]
[1726637032767,3.8167,131.0,130.94,3.84929422]
[1726637032965,9.39,131.0,130.96,9.39]
[1726637033158,9.39,130.99,130.95,9.39]
[1726637034767,13.207,130.99,130.96,3.8176]
[1726637037668,9.39,130.99,130.96,3.8176]
[1726637038465,9.39,130.99,130.96,3.8177]
[1726637038864,9.39,130.99,130.97,3.8174]
[1726637039568,13.2069,130.99,130.96,3.8176]
[1726637044176,9.39,130.99,130.96,3.8176]
[1726637045568,3.8164,131.01,130.97,3.8174]
[1726637045867,3.8164,131.01,130.97,13.2074]
[1726637049076,9.39,131.0,130.97,3.8174]
[1726637055781,13.2067,131.0,130.96,13.2076]
[1726637055971,9.39,131.0,130.96,13.2076]
[1726637056779,3.8169,130.99,130.96,13.2076]
[1726637057181,9.39,131.0,130.96,13.2076]
[1726637057585,13.2068,131.0,130.96,13.2076]
[1726637059298,3.8169,130.99,130.96,13.2076]
[1726637066101,13.2067,131.0,130.96,13.2076]
[1726637066693,13.2065,131.01,130.97,3.8173]
[1726637070201,13.2065,131.01,130.98,3.8171]
[1726637075301,3.8166,131.0,130.97,13.2073]
[1726637075606,3.8166,131.0,130.97,3.8173]
[1726637081417,3.8166,131.0,130.97,13.2073]
[1726637082605,3.817,130.99,130.96,3.8176]
[1726637082808,1.4985,131.04,130.93,304.42816]
[1726637083110,9.39,130.96,130.93,304.42816]
[1726637083308,9.39,130.96,130.93,313.81816]
[1726637083709,1.4955,130.99,130.93,313.81816]
[1726637083710,9.39,130.97,130.93,313.81816]
[1726637083911,9.39,130.97,130.94,3.8181]
[1726637094523,1.4955,130.99,130.96,9.39]
[1726637094722,1.4955,130.99,130.93,304.42816]
[1726637094921,1.4955,130.99,130.95,9.39]
[1726637095321,5.3123,130.99,130.95,13.2078]
[1726637095723,5.3123,130.99,130.95,9.39]
[1726637096119,1.4955,130.99,130.95,9.39]
[1726637096716,5.3126,130.99,130.95,13.208]
[1726637097823,5.3126,130.99,130.96,3.8177]
[1726637102436,3.8172,130.98,130.95,3.8179]
[1726637108535,6.8146,130.99,130.96,3.8177]
[1726637108722,16.2046,130.99,130.96,3.8177]
[1726637112638,6.8146,130.99,130.96,3.8177]
[1726637112938,16.2046,130.99,130.96,3.8177]
[1726637114742,3.8172,130.98,130.96,3.8177]
[1726637116139,16.2047,130.99,130.96,3.8177]
[1726637119642,3.8171,130.98,130.95,3.8178]
[1726637120146,3.8181,130.95,130.93,304.42816]
[1726637120338,13.2081,130.95,130.93,304.42816]
[1726637121846,3.8181,130.95,130.93,304.42816]
[1726637122044,3.8177,130.96,130.93,304.42816]
[1726637126745,9.39,130.97,130.93,308.24676]
[1726637126746,13.2075,130.97,130.93,308.24676]
[1726637127446,3.8178,130.96,130.93,308.24676]
[1726637129652,3.8178,130.96,130.93,304.42816]
[1726637130953,3.818,130.95,130.93,304.42816]
[1726637131153,13.208,130.95,130.93,304.42816]
[1726637131354,3.818,130.95,130.93,304.42816]
[1726637132755,13.208,130.95,130.93,304.42816]
[1726637134255,3.8183,130.94,130.93,304.42816]
[1726637134460,13.2083,130.94,130.93,304.42816]
[1726637136755,1.4804,130.98,130.93,304.42816]
[1726637136955,9.39,130.97,130.93,313.81816]
[1726637137759,13.2078,130.96,130.93,317.63666]
[1726637140364,3.8183,130.94,130.93,304.42816]
[1726637140553,13.2083,130.94,130.93,304.42816]
[1726637141361,3.8182,130.95,130.93,304.42816]
[1726637141561,13.2082,130.95,130.93,304.42816]
[1726637143271,3.8183,130.94,130.93,304.42816]
[1726637153563,13.2083,130.94,130.93,304.42816]
[1726637154974,3.8183,130.94,130.93,304.42816]
[1726637155173,13.2083,130.94,130.93,304.42816]
[1726637167886,1.4804,130.98,130.93,304.42816]
[1726637168079,9.39,130.95,130.93,304.42816]
[1726637169681,13.208,130.95,130.93,304.42816]
[1726637170787,9.39,130.94,130.93,304.42816]
[1726637171088,13.2083,130.94,130.93,304.42816]
[1726637175489,9.39,130.94,130.93,304.42816]
[1726637177096,1.4804,130.98,130.93,304.42816]
[1726637177097,3.8178,130.96,130.93,308.24676]
[1726637177282,9.39,130.95,130.93,308.24676]
[1726637180388,13.208,130.95,130.93,308.24676]
[1726637181085,2.9977,130.99,130.94,3.8183]
[1726637181485,9.39,130.97,130.94,3.8183]
[1726637182096,3.8173,130.98,130.95,3.818]
[1726637182392,1.4398,131.04,130.95,9.39]
[1726637182598,1.4602,131.03,130.95,9.39]
[1726637182892,13.2066,131.0,130.95,9.39]
[1726637183295,9.39,130.99,130.96,3.8176]
[1726637184383,13.2069,130.99,130.96,3.8176]
[1726637184783,9.39,130.98,130.95,3.818]
[1726637186591,3.8171,130.99,130.95,3.818]
[1726637186789,13.2071,130.99,130.96,3.8177]
[1726637190100,1.4602,131.03,130.97,9.39]
[1726637190101,3.8164,131.01,130.97,9.39]
[1726637190490,3.8164,131.01,130.97,3.8172]
[1726637191089,9.39,131.0,130.97,3.8172]
[1726637191295,13.2068,131.0,130.96,3.8177]
[1726637192599,13.2068,131.0,130.97,3.8174]
[1726637197599,3.8168,131.0,130.97,13.2074]
[1726637198205,9.39,131.02,130.98,9.39]
[1726637198598,3.8163,131.01,130.98,13.207]
[1726637200299,5.2759,131.03,130.99,13.2066]
[1726637200605,10.8502,131.03,130.99,13.2066]
[1726637200804,9.39,131.02,130.99,3.8166]
[1726637201398,14.666,131.03,130.99,13.2066]
[1726637203307,5.2143,131.04,131.0,3.8164]
[1726637203603,9.39,131.03,131.0,3.8164]
[1726637204901,13.2058,131.03,131.0,3.8164]
[1726637206003,3.8158,131.03,131.0,3.8164]
[1726637207510,13.2055,131.04,131.0,3.8164]
[1726637209211,9.39,131.04,130.99,9.39]
[1726637209514,9.39,131.03,130.98,9.39]
[1726637209907,3.8161,131.02,130.99,3.8167]
[1726637210113,3.8161,131.02,130.98,9.39]
[1726637210114,9.39,131.03,130.98,9.39]
[1726637210616,13.2059,131.03,131.0,3.8165]
[1726637212610,3.8159,131.03,131.0,13.2065]
[1726637217313,3.8161,131.02,130.94,6.81740905]
[1726637217519,3.8161,131.02,130.99,13.2067]
[1726637221619,3.8158,131.03,131.0,3.8165]
[1726637221809,9.39,131.04,130.99,9.39]
[1726637222913,3.8158,131.03,130.99,13.2066]
[1726637225722,3.8158,131.03,131.0,3.8165]
[1726637226918,3.8151,131.05,131.01,9.39]
[1726637227719,13.205,131.06,131.01,9.39]
[1726637228118,13.205,131.06,131.02,9.39]
[1726637228520,13.205,131.06,131.02,13.2058]
[1726637229523,13.205,131.06,131.03,3.8156]
[1726637229920,3.815,131.06,131.03,3.8156]
[1726637233725,8.2191,131.07,131.04,3.8154]
[1726637234526,8.2191,131.07,131.03,3.8155]
[1726637234925,8.2191,131.07,131.04,3.8154]
[1726637235130,2.9632,131.07,131.04,9.39]
[1726637235520,1.5322,131.07,131.05,9.39]
[1726637235719,9.39,131.1,131.06,9.39]
[1726637235930,4.3615,131.11,131.06,9.39]
[1726637236120,3.8141,131.09,131.06,9.39]
[1726637237023,3.8141,131.09,131.05,9.39]
[1726637237728,3.8141,131.09,131.05,13.2049]
[1726637239122,3.8141,131.09,131.06,13.2048]
[1726637240133,3.8143,131.08,131.06,9.39]
[1726637240430,9.39,131.09,131.05,3.815]
[1726637240632,9.39,131.09,131.04,13.2053]
[1726637240930,9.39,131.07,131.02,9.39]
[1726637241128,9.39,131.07,131.03,3.8155]
[1726637241325,13.2047,131.07,131.03,3.8155]
[1726637242734,3.8147,131.07,131.03,13.2055]
[1726637244028,9.39,131.08,131.03,13.2055]
[1726637244225,9.39,131.08,131.03,9.39]
[1726637244934,3.8146,131.07,131.03,13.2055]
[1726637252039,4.3615,131.11,131.05,9.39]
[1726637252336,9.39,131.1,131.05,9.39]
[1726637254839,9.39,131.1,131.06,3.8147]
[1726637254840,3.8139,131.09,131.06,3.8147]
[1726637255637,3.8139,131.09,131.05,13.205]
[1726637256031,3.8143,131.08,131.05,13.205]
[1726637256234,9.39,131.1,131.05,13.205]
[1726637256437,3.8141,131.09,131.05,13.205]
[1726637256836,3.8141,131.09,131.06,3.8148]
[1726637258939,13.2041,131.09,131.05,13.205]
[1726637259143,9.39,131.08,131.03,9.39]
[1726637259742,3.8146,131.07,131.04,3.8152]
[1726637260151,4.3615,131.11,131.05,9.39]
[1726637260339,9.39,131.09,131.05,9.39]
[1726637261243,3.8144,131.08,131.05,13.2051]
[1726637265848,13.2041,131.09,131.05,13.2051]
[1726637266043,13.2041,131.09,131.06,3.8148]
[1726637268153,13.2041,131.09,131.05,13.205]
[1726637268449,3.8143,131.08,131.05,13.205]
[1726637275649,3.8141,131.09,131.06,13.2048]
[1726637287859,3.8138,131.1,131.06,13.2048]
[1726637292863,13.204,131.09,131.06,3.8148]
[1726637293362,13.204,131.09,131.05,3.815]
[1726637294161,3.8143,131.08,131.05,3.815]
[1726637295059,13.2041,131.09,131.05,3.815]
[1726637295967,3.8142,131.08,131.05,3.815]
[1726637296263,3.8142,131.08,131.05,13.205]
[1726637297562,13.2041,131.09,131.05,13.205]
[1726637297955,13.2041,131.09,131.06,3.8147]
[1726637298261,13.2041,131.09,131.06,13.2047]
[1726637299164,8.1751,131.11,131.07,3.8143]
[1726637299367,13.7515,131.11,131.07,3.8143]
[1726637300067,12.2895,131.11,131.07,3.8143]
[1726637300860,3.8138,131.1,131.07,3.8143]
[1726637302060,13.2038,131.1,131.07,3.8143]
[1726637303066,3.8138,131.1,131.07,3.8143]
[1726637305474,3.8139,131.09,131.06,3.8147]
[1726637307078,3.8145,131.08,131.04,3.8153]
[1726637307380,3.8145,131.08,131.04,9.39]
[1726637308278,3.8145,131.08,131.05,13.2049]
[1726637309273,3.8141,131.09,131.05,13.2049]
[1726637323385,3.8141,131.09,131.03,3.85572519]
[1726637323386,3.8137,131.1,131.06,13.2046]
[1726637327691,12.2895,131.11,131.06,13.2046]
[1726637327692,3.814,131.09,131.06,13.2046]
[1726637327887,3.814,131.09,131.06,3.8146]
[1726637335995,3.814,131.09,131.06,13.2046]
[1726637336197,3.8138,131.1,131.07,3.8145]
[1726637350209,3.8138,131.1,131.07,13.2045]
[1726637352715,6.713,131.11,131.08,3.8142]
[1726637353017,6.713,131.11,131.08,13.2042]
[1726637356316,5.2461,131.11,131.08,13.2042]
[1726637357819,3.8132,131.12,131.09,3.8139]
[1726637361425,3.8132,131.12,131.09,13.2039]
[1726637362221,3.8135,131.11,131.08,3.8142]
[1726637362415,3.8135,131.11,131.08,13.2042]
[1726637363222,3.8137,131.1,131.08,9.39]
[1726637363722,3.8137,131.1,131.07,3.8144]
[1726637363923,3.8137,131.1,131.07,13.2044]
[1726637367829,3.8135,131.11,131.07,13.2044]
[1726637369625,3.8135,131.11,131.08,13.2042]
[1726637369826,3.8132,131.12,131.08,13.2042]
[1726637370423,3.8132,131.12,131.09,3.8138]
[1726637373930,3.8132,131.12,131.1,9.39]
[1726637376831,3.8132,131.12,131.09,3.8138]
[1726637377031,3.813,131.13,131.1,13.2036]
[1726637388842,3.8131,131.12,131.1,9.39]
[1726637391947,9.39,131.11,131.04,2.883]
[1726637392145,9.39,131.11,131.06,9.39]
[1726637393040,3.8139,131.1,131.07,3.8145]
[1726637396449,3.8139,131.1,131.07,13.2045]
[1726637400256,3.8135,131.11,131.07,13.2045]
[1726637400750,3.8135,131.11,131.08,13.2042]
[1726637401353,3.8135,131.11,131.08,9.39]
[1726637401551,3.8135,131.11,131.07,13.2044]
[1726637401756,3.8137,131.1,131.07,13.2044]
[1726637409465,3.8134,131.11,131.07,13.2044]
[1726637412664,3.8134,131.11,131.08,3.8142]
[1726637415858,9.39,131.12,131.04,2.883]
[1726637416056,9.39,131.1,131.05,6.54160309]
[1726637416257,9.39,131.09,131.03,3.85572519]
[1726637416464,9.39,131.07,131.04,3.8152]
[1726637416765,9.39,131.06,130.99,3.0233]
[1726637417063,9.39,131.06,131.02,9.39]
[1726637417756,13.2048,131.06,131.03,3.8157]
[1726637417957,9.39,131.06,131.03,3.8157]
[1726637418555,13.2048,131.06,131.02,13.2059]
[1726637418760,13.2048,131.06,131.02,9.39]
[1726637419867,13.2048,131.06,131.03,3.8157]
[1726637421263,13.2048,131.06,131.02,3.8159]
[1726637421564,13.2048,131.06,131.02,13.2059]
[1726637422357,13.2048,131.06,131.03,3.8157]
[1726637423657,3.8151,131.05,130.99,3.0233]
[1726637423863,9.39,131.06,131.02,9.39]
[1726637424365,13.2049,131.06,131.02,13.2058]
[1726637425258,13.2049,131.06,131.03,3.8156]
[1726637426064,3.8149,131.06,131.03,13.2056]
[1726637432470,13.2049,131.06,131.03,3.8156]
[1726637436674,13.2046,131.07,131.02,9.39]
[1726637437671,3.8148,131.06,131.03,3.8155]
[1726637440177,13.2048,131.06,131.03,3.8155]
[1726637440681,13.2051,131.05,131.0,9.39]
[1726637440877,3.77844331,131.08,130.99,9.39]
[1726637440878,9.39,131.03,130.99,9.39]
[1726637441275,3.8156,131.04,131.0,9.39]
[1726637441476,9.39,131.05,131.0,9.39]